[Event "1st FIDE Olympiad DIS 2023"]
[Site "Belgrade"]
[Date "2023.01.31"]
[Round "2.11"]
[White "Morales Santos, Natasha"]
[Black "Paal-Szucs, Attila"]
[Result "1-0"]
[ECO "A67"]
[WhiteElo "1893"]
[BlackElo "2141"]
[Annotator "TA"]
[PlyCount "111"]
[EventDate "2023.01.30"]
[EventType "team-tourn"]
[EventCountry "SRB"]
[SourceTitle "playchess.com"]
[Source "ChessBase"]
[SourceQuality "1"]
[WhiteTeam "Puerto Rico"]
[BlackTeam "Hungary"]
[WhiteTeamCountry "PUR"]
[BlackTeamCountry "HUN"]
[TimeControl "40/5400+30:1800+30"]

{[%evp 23,111,100,86,81,82,60,393,387,370,-8,37,1,77,80,81,58,67,56,83,89,94,56,117,106,372,389,465,463,580,569,538,536,476,101,97,102,102,85,206,0,198,15,15,8,518,176,187,14,14,16,159,145,348,348,295,270,611,552,1391,1372,1606,1593,1502,1402,5695,5691,5119,5579,5297,5173,5206,5202,29981,29982,29983,29983,29984,29985,29985,29986,29986,29987,29987,29988,29989,29986,29986,29986,29988,29989]} 1. d4 {[%emt 0:00:04]} Nf6 {[%emt 0:00:30]} 2. c4 {[%emt 0:00:02]} c5 {[%emt 0:00:12]} 3. d5 {[%emt 0:00:04]} e6 {[%emt 0:00:07]} 4. Nc3 {[%emt 0:00:04]} exd5 {[%emt 0:00:13]} 5. cxd5 {[%emt 0:00:03]} d6 {[%emt 0:00:20]} 6. e4 {[%emt 0:00:07]} g6 {[%emt 0:00:27]} 7. f4 {[%emt 0:00:03][%cal Bf2f4,Bf4e5,Be5e6][%mdl 32]} Bg7 {[%emt 0:00:09]} 8. Bb5+ {[%emt 0:00:05]} Nbd7 {[%emt 0:01:45]} 9. e5 {[%emt 0:03:03]} dxe5 {[%emt 0:00:15]} 10. fxe5 {[%emt 0:00:25]} Nh5 {[%emt 0:00:20]} 11. e6 {[%emt 0:03:40]} Qh4+ {[%emt 0:00:52]} 12. g3 {[%emt 0:02:15]} Nxg3 {[%emt 0:00:13]} 13. hxg3 {[%emt 0:00:02] A67: Modern Benoni: Taimanov Variation.} (13. exd7+ $6 Bxd7 14. hxg3 Qxh1 15. Bxd7+ Kxd7 16. Qg4+ (16. Qa4+ Kc8 $11) 16... f5 17. Qa4+ Kc8 $11) 13... Qxh1 {[%emt 0:00:43]} 14. Be3 {[%emt 0:01:52] White is more active.} (14. exd7+ $6 Bxd7 15. Bxd7+ Kxd7 16. Qa4+ Kc8 $11) 14... a6 $2 {[%emt 0:06:31][%mdl 8192]} 15. exd7+ $18 {[%emt 0:01:32] White is winning.} (15. Bxd7+ Bxd7 16. exd7+ Kxd7 $18) 15... Bxd7 {[%emt 0:00:22]} 16. Bf1 {[%emt 0:03:13]} (16. Bxd7+ $18 Kxd7 17. Qa4+ (17. Bxc5 Qg2 $17) 17... Kc8 18. O-O-O (18. Bxc5 Bxc3+ {[%mdl 64] Remove Defender} 19. bxc3 Qxd5 $11)) 16... O-O {[%emt 0:06:31]} 17. Kf2 $1 {[%emt 0:05:16][%mdl 1024] With the idea Bg2. White has compensation.} Rfe8 {[%emt 0:08:49]} (17... Qh2+ $11 18. Bg2 Be5) 18. Bg2 $1 $16 {[%emt 0:02:43]} Qh2 {[%emt 0:00:17][%cal Oe8e3]} 19. Nf3 {[%emt 0:02:20]} (19. Bxc5 Be5 20. Nge2 Rac8 $11) 19... Qh5 {[%emt 0:01:17][%cal Oe8e3]} 20. Bxc5 {[%emt 0:14:24] [#]} Bg4 $146 {[%emt 0:00:40]} ({Predecessor:} 20... Rac8 21. Bd4 Bxd4+ 22. Qxd4 Qf5 23. Rd1 b5 24. Bf1 b4 25. Bd3 Qh5 26. Ne4 Rxe4 27. Qxe4 {1-0 Hasseine,M (2157)-Devallee,J (2220) FRA-chT 16 Final-B blitz 2021 (7)}) 21. Bd4 {[%emt 0:11:28]} Bf8 {[%emt 0:06:22]} 22. Qd2 {[%emt 0:15:36]} (22. Kg1 Bd6 $14) 22... Bh6 {[%emt 0:07:47] Inhibits Ng5.} ({Black should play} 22... Rac8 $14) 23. Qc2 {[%emt 0:01:28] And now Rh1 would win. Some like it hot} Bf5 $2 {[%emt 0:09:40][%mdl 8192]} (23... Bxf3 $2 24. Bxf3 Qh2+ 25. Bg2 $18) (23... Bg7 $16 {was called for.}) 24. Qb3 $18 {[%emt 0:01:16] aiming for Rh1.} Qg4 {[%emt 0:12:38]} 25. Rh1 {[%emt 0:03:07]} (25. Qxb7 $2 Rab8 26. Qc7 Rxb2+ 27. Kg1 Rd2 $19) 25... Qxd4+ {[%emt 0:05:57]} 26. Nxd4 {[%emt 0:00:25]} Be3+ {[%emt 0:00:09]} 27. Kf3 {[%emt 0:03:52]} Bxd4 {[%emt 0:00:17]} 28. Rh4 $2 {[%emt 0:05:38]} (28. Qxb7 Rab8 $17) (28. g4 $18 {is more deadly.} Bd3 29. d6 (29. Qxb7 Rab8 $16)) 28... Re3+ $16 {[%emt 0:01:28]} 29. Kf4 {[%emt 0:03:48]} Rae8 {[%emt 0:04:37] White must now prevent ...Rd3.} 30. Qa4 $1 {[%emt 0:02:00]} (30. Qxb7 $2 Rd3 31. Ne4 (31. Qxa6 Be5+ {[%mdl 64] Skewer, Deflection} 32. Kg5 Rxg3+) 31... Bxe4 32. Qxa6 (32. Bxe4 Be5+ {[%mdl 64] Skewer, Deflection} 33. Kg5 Rxg3+ 34. Rg4 h6+ 35. Kh4 g5+ {[%mdl 64] X-Ray Attack}) 32... Be3+ 33. Kg4 Bxg2 34. Qxd3 f5+ $19) 30... Bf6 {[%emt 0:00:44] A strong pair of Bishops.} (30... Bxc3 $16 31. bxc3 f6) 31. Rh1 $2 {[%emt 0:05:21]} ({White must play} 31. Rh2 $1 $18) 31... R8e5 {[%emt 0:01:30] [#] Dodges Ne4} (31... h6 $1 $11 {and Black is okay.} 32. Ne4 (32. Rxh6 R8e5 $11) 32... R8xe4+ {[%mdl 64] Remove Defender} 33. Bxe4 Bg5+ 34. Ke5 Bxe4 35. Qxe4 Bf6+ 36. Kxf6 (36. Kf4 Bg5+ 37. Ke5 Bf6+ 38. Kxf6 Rxe4 $16) 36... Rxe4) 32. Ne4 $1 {[%emt 0:01:47]} Bxe4 $11 {[%emt 0:01:33]} 33. Bxe4 {[%emt 0:06:00]} (33. Kxe3 $2 {loses.} Bxg2+ 34. Kd3 Rxd5+ 35. Kc2 Bxh1 $19) 33... R5xe4+ {[%emt 0:02:15]} (33... b5 $1 $11 {and Black has nothing to worry.}) 34. Qxe4 $18 {[%emt 0:00:20]} Bg5+ {[%emt 0:00:15]} 35. Kxg5 $2 {[%emt 0:00:51]} (35. Ke5 $1 $18) 35... Rxe4 {[%emt 0:00:10][%mdl 4096] Endgame KR-KR} 36. Kf6 {[%emt 0:01:17] Strongly threatening Rc1.} Re3 {[%emt 0:03:39] White now steadily converts the win.} (36... b5 $11) 37. Rc1 $1 $16 {[%emt 0:00:48] White threatens Rc8+ and mate.} Rf3+ $2 {[%emt 0:00:13] [#]} (37... Rxg3 $2 38. Rc8#) (37... Kf8 $16) 38. Ke7 $1 $18 {[%emt 0:00:11]} Re3+ {[%emt 0:00:15] [#]} (38... Rxg3 $2 39. d6 Re3+ 40. Kd8 $16) 39. Kd7 $1 {[%emt 0:00:49]} f5 $2 {[%emt 0:00:26]} (39... Rxg3 40. d6 Rd3) 40. Rc3 {[%emt 0:01:21]} Re5 {[%emt 0:04:09]} 41. d6 {[%emt 0:02:31]} Kf7 {[%emt 0:01:55]} 42. Kc7 {[%emt 0:01:09][%cal Od6d7] d7! would be deadly.} Rd5 {[%emt 0:01:28]} 43. d7 {[%emt 0:00:54]} ({Not} 43. Kxb7 Rxd6 44. b4 g5 $11) 43... Kf6 {[%emt 0:00:26]} 44. d8=Q+ {[%emt 0:00:31]} Rxd8 {[%emt 0:00:06]} 45. Kxd8 {[%emt 0:00:09] KR-KP} g5 {[%emt 0:00:11]} 46. Kc7 {[%emt 0:00:28][%cal Ob2b4] Hoping for b4!} h5 {[%emt 0:00:26]} 47. Kxb7 {[%emt 0:00:42]} h4 {[%emt 0:02:44]} 48. gxh4 {[%emt 0:07:32] KR-K3P. White mates.} g4 {[%emt 0:00:37]} 49. Kc6 {[%emt 0:01:17]} f4 {[%emt 0:02:58]} 50. Kd5 {[%emt 0:00:18]} Kf5 {[%emt 0:00:05]} 51. Rc8 {[%emt 0:01:26]} f3 {[%emt 0:02:22]} 52. Rf8+ {[%emt 0:00:10]} Kg6 {[%emt 0:00:10]} 53. Ke4 {[%emt 0:00:16]} Kh5 {[%emt 0:00:22]} 54. Rh8+ {[%emt 0:00:06]} Kg6 {[%emt 0:00:17]} 55. Ke3 {[%emt 0:00:28]} Kf5 {[%emt 0:00:14]} 56. Rg8 {[%emt 0:00:22] Artfully played by Morales Santos.   Weighted Error Value: White=0.50/Black=0.98} 1-0

[Event "1st FIDE Olympiad DIS 2023"]
[Site "Belgrade"]
[Date "2023.01.31"]
[Round "2.11"]
[White "Sauti Harry"]
[Black "Abiad Parra, Victor"]
[Result "0-1"]
[ECO "C54"]
[WhiteElo "1693"]
[BlackElo "1855"]
[Annotator "NA RC COMBH"]
[PlyCount "64"]
[EventDate "2023.01.30"]
[EventType "team-tourn"]
[EventCountry "SRB"]
[SourceTitle "playchess.com"]
[Source "ChessBase"]
[SourceQuality "1"]
[WhiteTeam "Zambia"]
[BlackTeam "Venezuela"]
[WhiteTeamCountry "ZAM"]
[BlackTeamCountry "VEN"]
[TimeControl "40/5400+30:1800+30"]

{[%evp 11,63,9,32767,-101,32767,-100,-93,-128,-141,-207,-199,-225,-152,-163,-139,-156,-162,-166,-107,-177,-123,-128,32767,-170,-172,-173,-144,-399,-145,-304,-195,-245,-233,32767,32767,32767,-347,-305,32767,32767,32767,32767,32767,32767,32767,-5810,-29986,32767,-29991,-29991,32767,-29997,-684,-29998]} 1. e4 {[%emt 0:00:27]} e5 {[%emt 0:00:09]} 2. Nf3 {[%emt 0:02:37]} Nc6 {[%emt 0:00:06]} 3. d4 {[%emt 0:02:32]} exd4 {[%emt 0:00:07]} 4. Bc4 {[%emt 0:02:29]} Bc5 {[%emt 0:01:30]} 5. c3 {[%emt 0:04:29]} Nf6 {[%emt 0:00:45]} 6. e5 {[%emt 0:00:59]} ({Much weaker is} 6. Nxd4 Nxe4 7. Nd2 (7. Qf3 $2 d5 $17) 7... Nxd2 8. Qe2+ Qe7 9. Qxe7+ Kxe7 $17) 6... d5 {[%emt 0:00:37]} 7. exd6 {[%emt 0:05:02]} ({Of course not} 7. cxd4 Bb4+ 8. Bd2 dxc4 $17) (7. Be2 $11) 7... Qxd6 {[%emt 0:03:41]} 8. O-O {[%emt 0:02:19]} O-O {[%emt 0:01:19]} 9. h3 {[%emt 0:02:41]} ({White should try} 9. b4 Bb6 10. Ba3) 9... Bf5 {[%emt 0:05:18]} 10. Bg5 {[%emt 0:07:37]} (10. cxd4 $17 Nxd4 11. Nxd4 Qxd4 12. Qxd4 Bxd4 13. Nd2) 10... Ne4 {[%emt 0:03:26]} 11. Bh4 {[%emt 0:05:32]} h6 {[%emt 0:05:21]} 12. Nbd2 {[%emt 0:03:04]} d3 {[%emt 0:06:30]} 13. Nxe4 {[%emt 0:06:11]} Bxe4 {[%emt 0:00:07]} 14. Kh1 {[%emt 0:01:12]} Bb6 {[%emt 0:21:35]} ({Black should try} 14... Na5 $19 15. Bg3 Qd8) 15. a3 {[%emt 0:00:55]} (15. Bg3 $17 Qd7 16. Re1) 15... Qf4 {[%emt 0:02:24]} 16. Bg3 {[%emt 0:00:30]} Qf5 {[%emt 0:00:28]} 17. Ba2 {[%emt 0:02:02]} (17. Kg1 $17) 17... Rad8 {[%emt 0:02:04]} 18. Kh2 {[%emt 0:00:24]} Bxf3 {[%emt 0:04:15]} 19. gxf3 $2 {[%emt 0:04:57]} (19. Qxf3 Qxf3 20. gxf3) 19... Ne5 $2 {[%emt 0:03:37]} (19... Rfe8 $19 {has better winning chances.} 20. Re1 Rxe1 21. Qxe1 Qxf3) 20. Kg2 $2 {[%emt 0:01:57]} (20. f4 $17 Nd7 21. Qg4 Qxg4 22. hxg4) 20... Bc5 {[%emt 0:09:01]} 21. Re1 {[%emt 0:01:25]} Bd6 $19 {[%emt 0:01:16]} 22. Re3 {[%emt 0:03:22]} Ng6 {[%emt 0:01:59]} 23. Re4 {[%emt 0:07:51]} h5 {[%emt 0:06:12]} 24. h4 {[%emt 0:05:51]} Nf4+ {[%emt 0:05:28]} 25. Bxf4 {[%emt 0:01:54]} Bxf4 {[%emt 0:00:00]} 26. Qa4 {[%emt 0:02:43]} Bh6 {[%emt 0:01:16]} 27. Rae1 {[%emt 0:02:09]} Rd6 {[%emt 0:00:47]} 28. Rh1 {[%emt 0:03:00]} Rg6+ {[%emt 0:00:17] Deflection} 29. Kf1 {[%emt 0:06:04]} Qxf3 {[%emt 0:00:28]} 30. Rh2 {[%emt 0:02:04]} b5 {[%emt 0:06:09]} 31. Qd4 {[%emt 0:03:00]} Qd1+ {[%emt 0:02:28]} 32. Re1 {[%emt 0:00:34]} Qxe1+ {[%emt 0:00:20]} 0-1

[Event "1st FIDE Olympiad DIS 2023"]
[Site "Belgrade"]
[Date "2023.01.31"]
[Round "2.12"]
[White "Paal, Andras"]
[Black "Tran, Thi Bich Thuy"]
[Result "1-0"]
[ECO "B34"]
[WhiteElo "2019"]
[BlackElo "1422"]
[Annotator "TA"]
[PlyCount "89"]
[EventDate "2023.01.30"]
[EventType "team-tourn"]
[EventCountry "SRB"]
[SourceTitle "playchess.com"]
[Source "ChessBase"]
[SourceQuality "1"]
[WhiteTeam "Hungary"]
[BlackTeam "Vietnam"]
[WhiteTeamCountry "HUN"]
[BlackTeamCountry "VIE"]
[TimeControl "40/5400+30:1800+30"]

{[%evp 23,88,4,6,16,20,0,20,0,27,0,0,0,7,0,0,0,32,18,47,57,51,55,59,59,52,58,54,20,63,70,82,74,71,58,80,79,87,84,84,72,88,88,88,88,95,60,216,215,204,204,1296,1045,1522,1472,1773,1567,1681,1661,1656,1679,1628,1506,1013,487,29989,29990,29990]} 1. e4 {[%emt 0:00:12]} c5 {[%emt 0:00:25]} 2. Nf3 {[%emt 0:00:19]} g6 {[%emt 0:00:27]} 3. d4 {[%emt 0:00:08]} cxd4 {[%emt 0:00:11]} 4. Nxd4 {[%emt 0:00:07]} Nc6 {[%emt 0:00:21]} 5. Be3 {[%emt 0:01:07]} Bg7 {[%emt 0:01:08]} 6. Nc3 {[%emt 0:00:55]} Nf6 {[%emt 0:00:42]} 7. f3 {[%emt 0:03:45]} O-O {[%emt 0:07:14]} 8. Qd2 {[%emt 0:03:51]} d5 {[%emt 0:00:54]} 9. O-O-O {[%emt 0:10:39]} dxe4 {[%emt 0:03:28]} 10. fxe4 {[%emt 0:02:18]} Ng4 {[%emt 0:03:22][%cal Bf6g4,Bg4e5,Be5d7,Bd7c5][%mdl 32]} 11. Nxc6 {[%emt 0:04:03]} Qxd2+ {[%emt 0:00:57]} 12. Bxd2 {[%emt 0:00:15]} bxc6 {[%emt 0:01:02]} 13. Re1 $1 {[%emt 0:00:42] B34: Sicilian: Accelerated Dragon with 5 Nc3: sidelines.} Be6 {[%emt 0:02:50]} 14. h3 {[%emt 0:09:20]} Ne5 {[%emt 0:04:17]} 15. Na4 {[%emt 0:07:45] [#] The position is equal.} Nd7 $146 {[%emt 0:11:26][%cal Od7b6]} ({Don't play} 15... Bxa2 16. b3 $16) (15... c5 $5) ({Predecessor:} 15... Nc4 16. Bxc4 Bxc4 17. Nc5 f6 18. b3 Bf7 19. e5 Bd5 20. Re2 Rfd8 21. e6 f5 {0-1 Ugalde Garcia,R (2165)-Gonzalez Acosta,B (2385) CRI-ch Costa Rica 1997 (15)}) 16. Bc3 {[%emt 0:01:30]} Bxc3 {[%emt 0:07:13]} ({Resist} 16... Bxa2 17. b3 $16) 17. Nxc3 {[%emt 0:00:05]} Nc5 {[%emt 0:01:14]} 18. Rd1 {[%emt 0:00:27]} Rfd8 {[%emt 0:00:55]} 19. Be2 {[%emt 0:00:16]} Nb7 {[%emt 0:10:22]} 20. Bf3 {[%emt 0:00:40]} Rxd1+ {[%emt 0:00:31]} 21. Rxd1 {[%emt 0:00:48]} Rd8 {[%emt 0:00:12]} 22. e5 {[%emt 0:06:20]} Rxd1+ {[%emt 0:01:29]} 23. Kxd1 $14 {[%emt 0:00:21][%mdl 4096] Endgame KBN-KBN} Nd8 {[%emt 0:01:19]} 24. Kd2 {[%emt 0:03:09]} Kf8 {[%emt 0:04:36]} 25. b4 {[%emt 0:06:26]} (25. Ne4 $5 {[%cal Re4g5]}) 25... Bc4 {[%emt 0:08:18]} 26. Ke3 {[%emt 0:00:45]} Ke8 {[%emt 0:04:53]} 27. a4 {[%emt 0:04:14]} Kd7 {[%emt 0:01:53]} 28. Kd4 {[%emt 0:01:23]} Be6 {[%emt 0:00:37]} 29. Ne4 {[%emt 0:01:06]} Kc7 {[%emt 0:00:24]} 30. Nc5 {[%emt 0:00:57]} Bf5 {[%emt 0:02:22]} 31. Kc3 {[%emt 0:02:46]} h5 {[%emt 0:01:12]} 32. g4 {[%emt 0:01:49]} hxg4 {[%emt 0:00:05]} 33. hxg4 {[%emt 0:00:17][%cal Bh3g4,Bg4g5][%mdl 32]} Bd7 {[%emt 0:00:12]} 34. a5 {[%emt 0:01:07] White is more active.} Ne6 $2 {[%emt 0:00:39] [#] This move loses the game for Black.} (34... f5 $14) 35. Nxe6+ $1 $18 {[%emt 0:05:49]} Bxe6 {[%emt 0:00:12] [#] KB-KB} 36. g5 {[%emt 0:00:20] Black must now prevent Kd4.} a6 $2 {[%emt 0:03:28]} (36... Bf5 37. Kd2 Kd7) 37. Kd4 {[%emt 0:01:01] Hoping for Kc5.} Bc8 {[%emt 0:01:02]} 38. Kc5 {[%emt 0:00:40]} Bd7 {[%emt 0:01:38]} 39. c3 {[%emt 0:01:23]} Be8 {[%emt 0:00:30]} 40. Be2 {[%emt 0:01:03]} Kb7 {[%emt 0:01:30]} 41. Bc4 {[%emt 0:30:47]} Ka7 {[%emt 0:31:29]} 42. Bd3 {[%emt 0:02:40]} Bd7 {[%emt 0:02:10]} 43. c4 {[%emt 0:00:49]} (43. Be4 $142 Kb7 44. e6 {[%mdl 64] Deflection} Bxe6 45. Bxc6+ Ka7 46. c4) 43... Bf5 {[%emt 0:10:53]} (43... Kb7 $18 44. Be2 Kc7) 44. Bxf5 {[%emt 0:02:24]} gxf5 {[%emt 0:00:00]} 45. e6 {[%emt 0:00:00][%mdl 64] Promotion.   Weighted Error Value: White=0.22 (precise) /Black=0.50} 1-0

[Event "1st FIDE Olympiad DIS 2023"]
[Site "Belgrade"]
[Date "2023.01.31"]
[Round "2.13"]
[White "Severino, Sander"]
[Black "Orsag, Milan"]
[Result "1-0"]
[ECO "D34"]
[WhiteElo "2364"]
[BlackElo "2308"]
[Annotator "TA"]
[PlyCount "75"]
[EventDate "2023.01.30"]
[EventType "team-tourn"]
[EventCountry "SRB"]
[SourceTitle "playchess.com"]
[Source "ChessBase"]
[SourceQuality "1"]
[WhiteTeam "Philippines"]
[BlackTeam "Czech Republic"]
[WhiteTeamCountry "PHI"]
[BlackTeamCountry "CZE"]
[TimeControl "40/5400+30:1800+30"]

{[%evp 32,75,32,9,44,57,47,25,23,23,41,31,54,55,65,0,0,0,21,0,0,0,8,11,31,8,46,54,37,33,50,53,59,75,108,108,108,84,141,131,117,115,119,112,112,105]} 1. d4 {[%emt 0:00:26]} d5 {[%emt 0:00:30]} 2. c4 {[%emt 0:01:06]} e6 {[%emt 0:00:47]} 3. Nc3 {[%emt 0:01:36]} c5 {[%emt 0:01:09]} 4. cxd5 {[%emt 0:00:30]} exd5 {[%emt 0:00:25]} 5. Nf3 {[%emt 0:00:16]} Nc6 {[%emt 0:00:49]} 6. g3 {[%emt 0:00:48]} Nf6 {[%emt 0:00:32]} 7. Bg2 {[%emt 0:00:25]} Be7 {[%emt 0:00:48]} 8. O-O {[%emt 0:01:31]} O-O {[%emt 0:00:08]} 9. Bg5 {[%emt 0:00:40]} cxd4 {[%emt 0:00:51]} 10. Nxd4 {[%emt 0:00:09]} h6 {[%emt 0:00:08]} 11. Be3 {[%emt 0:03:34]} Re8 {[%emt 0:01:55]} 12. Rc1 {[%emt 0:03:40]} Bf8 {[%emt 0:03:37]} 13. Nxc6 {[%emt 0:06:20]} bxc6 {[%emt 0:00:00]} 14. Na4 {[%emt 0:00:15]} Bd7 {[%emt 0:00:34]} 15. Bc5 {[%emt 0:00:13]} Bxc5 {[%emt 0:02:36]} 16. Nxc5 {[%emt 0:01:02]} Bg4 {[%emt 0:08:57]} 17. Re1 {[%emt 0:01:27]} Rb8 {[%emt 0:04:51] D34: Tarrasch Defence: 6 g3 Nf6 7 Bg2 Be7.} (17... Qa5 $5 {[%cal Ra5a2]}) 18. b3 {[%emt 0:08:36]} Qa5 {[%emt 0:08:25]} 19. Na4 {[%emt 0:07:09]} Rbc8 {[%emt 0:08:59] White has an edge.} 20. h3 {[%emt 0:10:07]} Bf5 {[%emt 0:04:08]} 21. Qd4 {[%emt 0:07:28] [#]} h5 $146 {[%emt 0:10:29]} ({Predecessor:} 21... c5 22. Nxc5 Qxa2 23. e3 Qa3 24. Rc3 Rb8 25. Rec1 Red8 26. b4 Qa2 27. Rb3 Rdc8 {½-½ Polak,T (2485)-Orsag,M (2408) CZE-chT 0506 2005 (11)}) 22. e3 {[%emt 0:08:30]} Be4 {[%emt 0:04:33]} 23. f3 {[%emt 0:02:22]} ({White should try} 23. Nc5 $14) 23... Bf5 $11 {[%emt 0:01:17]} 24. Kf2 {[%emt 0:00:37]} Nd7 {[%emt 0:10:02]} 25. Qc3 {[%emt 0:04:38] Dodges c5} Qc7 {[%emt 0:08:51][%cal Oh5h4]} 26. Nc5 {[%emt 0:00:43][%cal Ba4c5,Bc5b3,Bb3d4][%mdl 32]} Nf6 {[%emt 0:05:28][%cal Bd7f6,Bf6e8,Be8d6,Bd6b7][%mdl 32]} 27. h4 {[%emt 0:03:02]} Re7 {[%emt 0:04:41]} 28. b4 {[%emt 0:02:37]} ({Much weaker is} 28. e4 dxe4 29. fxe4 Bg4 $11) 28... Ne8 {[%emt 0:02:43]} 29. Nb3 {[%emt 0:01:03]} Nd6 {[%emt 0:00:33]} 30. Nd4 {[%emt 0:00:14][%cal Rc3c6]} Bd7 {[%emt 0:01:28][%cal Oa7a5]} 31. Bf1 {[%emt 0:00:31]} Qb6 {[%emt 0:03:45]} 32. Qc5 {[%emt 0:02:08]} (32. a3 {looks sharper.} Nb7 33. Nb3 Re6 34. Bd3) 32... Qxc5 {[%emt 0:00:16]} 33. Rxc5 {[%emt 0:00:39]} Nb7 {[%emt 0:00:10]} 34. Rc3 {[%emt 0:01:00] Ba6 would be deadly. White is more active.} c5 {[%emt 0:00:36]} (34... a5 $142) 35. bxc5 {[%emt 0:02:31]} Rxc5 {[%emt 0:00:08]} 36. Rec1 {[%emt 0:01:12] White is better.} Rxc3 {[%emt 0:00:34]} 37. Rxc3 {[%emt 0:00:11] [#] Hoping for Rc7.} Be6 {[%emt 0:00:31]} 38. Bd3 {[%emt 0:07:10] Weighted Error Value: White=0.11 (very precise) /Black=0.11 (very precise)} 1-0